bitfinex/quotes_ETHUSD_20220226
["timestamp","ask_amount","ask_price","bid_price","bid_amount"]
[1645895082854,1.1433,2793.8,2793.3,1.12435169]
[1645895082855,0.3,2793.8,2793.3,1.12435169]
[1645895083055,0.3,2793.8,2793.0,48.2091]
[1645895083259,2.30206972,2793.9,2793.0,48.2091]
[1645895083453,3.30206972,2793.9,2793.0,48.2091]
[1645895083854,3.3,2793.9,2793.0,48.2091]
[1645895084053,3.30206972,2793.9,2793.0,48.2091]
[1645895084655,2.30206972,2793.9,2793.0,48.2091]
[1645895084855,3.30206972,2793.9,2793.0,48.2091]
[1645895085109,3.3,2793.9,2793.0,48.2091]
[1645895085301,3.30206972,2793.9,2793.0,48.2091]
[1645895085505,3.30206972,2793.9,2793.2,1.14087856]
[1645895086106,2.30206972,2793.9,2793.2,1.14087856]
[1645895086306,3.3,2793.9,2793.2,1.14087856]
[1645895086507,3.3,2793.9,2793.0,48.2091]
[1645895086508,2.30492153,2793.9,2793.4,0.00492233]
[1645895086708,5.89111319,2793.9,2793.4,0.00492233]
[1645895086910,0.69608108,2793.8,2793.4,0.00492233]
[1645895087309,1.41733608,2793.8,2793.4,0.00492233]
[1645895087510,0.516,2793.8,2793.0,48.2091]
[1645895087709,1.41733608,2793.8,2793.5,0.00285215]
[1645895088009,0.90133608,2793.7,2793.5,0.00285215]
[1645895088209,1.71733608,2793.7,2793.5,0.00285215]
[1645895088609,1.71733608,2793.7,2793.0,48.2091]
[1645895088855,1.71733608,2793.7,2793.5,0.00285215]
[1645895089257,0.816,2793.7,2793.5,0.00285215]
[1645895089459,1.71733608,2793.7,2793.5,0.00285215]
[1645895089860,1.71733608,2793.7,2793.0,48.2091]
[1645895090062,0.90133608,2793.6,2793.5,0.00285215]
[1645895090262,1.20133608,2793.6,2793.5,0.00285215]
[1645895090966,1.20133608,2793.6,2793.0,48.2091]
[1645895091162,0.3,2793.6,2793.0,48.2091]
[1645895091362,0.3,2793.6,2793.4,0.00491896]
[1645895091569,6.85019282,2793.5,2793.4,1.896e-05]
[1645895091765,0.00188398,2793.3,2793.0,48.2091]
[1645895091966,1.41874408,2793.2,2793.0,48.2091]
[1645895092165,4.48893574,2793.1,2793.0,48.2091]
[1645895092365,5.18501682,2793.1,2793.0,48.2091]
[1645895092631,1.59882516,2793.1,2793.0,48.2091]
[1645895092821,6.18501682,2793.1,2793.0,48.2091]
[1645895093021,5.18501682,2793.1,2793.0,48.2091]
[1645895093220,2.59882516,2793.1,2793.0,48.2091]
[1645895093424,1.69608108,2793.1,2793.0,48.2091]
[1645895093630,4.28227274,2793.1,2793.0,48.2091]
[1645895093826,2.59936254,2793.1,2793.0,48.2091]
[1645895094225,5.28227274,2793.1,2793.0,48.2091]
[1645895094626,5.53606545,2793.1,2793.0,48.2091]
[1645895095027,1.94987379,2793.1,2793.0,48.2091]
[1645895095230,1.85305125,2793.1,2793.0,48.2091]
[1645895095726,0.94987379,2793.1,2793.0,48.2091]
[1645895096956,1.85305125,2793.1,2793.0,48.2091]
[1645895097659,0.69608108,2793.1,2793.0,48.2091]
[1645895099059,4.28227274,2793.1,2793.0,48.2091]
[1645895099258,5.28227274,2793.1,2793.0,48.2091]
[1645895099456,1.69608108,2793.1,2793.0,48.2091]
[1645895099657,6.18521022,2793.1,2793.0,48.2091]
[1645895099857,5.18521022,2793.1,2793.0,48.2091]
[1645895100123,2.59901856,2793.1,2793.0,48.2091]
[1645895100308,1.59901856,2793.1,2793.0,48.2091]
[1645895100509,1.69608108,2793.1,2793.0,48.2091]
[1645895100708,1.59901856,2793.1,2793.0,48.2091]
[1645895100909,0.69608108,2793.1,2793.0,48.2091]
[1645895101114,1.59914925,2793.1,2793.0,48.2091]
[1645895102317,0.69608108,2793.1,2793.0,48.2091]
[1645895102517,1.59925103,2793.1,2793.0,48.2091]
[1645895102718,0.69608108,2793.1,2793.0,48.2091]
[1645895103018,1.59931828,2793.1,2793.0,48.2091]
[1645895104058,0.69608108,2793.1,2793.0,48.2091]
[1645895105660,5.64092966,2793.2,2793.0,48.2091]
[1645895105661,1.35294996,2793.2,2793.0,48.2091]
[1645895105862,0.9036296,2793.1,2793.0,48.2091]
[1645895106066,2.90551358,2793.3,2793.0,48.2091]
[1645895106666,0.9036296,2793.2,2793.0,48.2091]
[1645895106866,0.3,2793.2,2793.0,48.2091]
[1645895107071,2.3155045,2793.2,2793.0,48.21401936]
[1645895107267,0.3,2793.1,2793.0,48.21401936]
[1645895107466,0.816,2793.1,2793.0,48.21401936]
[1645895107721,10.75514162,2793.1,2793.0,47.51117535]
[1645895107920,11.79740477,2793.1,2793.0,43.83999572]
[1645895108118,15.73069776,2793.1,2793.0,43.83999572]
[1645895108320,15.73069776,2793.1,2793.0,29.84679572]
[1645895109126,17.91796256,2793.1,2793.0,29.84679572]
[1645895109720,16.10952897,2793.1,2793.0,29.84679572]
[1645895110320,17.91796256,2793.1,2793.0,29.84679572]
[1645895110720,17.91796256,2793.1,2793.0,29.30379572]
[1645895112759,11.39847791,2793.1,2793.0,29.30379572]
[1645895112960,12.79276213,2793.1,2793.0,29.30379572]
[1645895113360,14.60119572,2793.1,2793.0,29.30379572]
[1645895114161,11.0196467,2793.1,2793.0,29.30379572]
[1645895114761,11.01903514,2793.1,2793.0,29.30379572]
[1645895115410,9.21060155,2793.1,2793.0,29.30379572]
[1645895117815,5.56474359,2793.1,2793.0,29.30379572]
[1645895118015,4.21060155,2793.1,2793.0,29.30379572]
[1645895119767,3.99608108,2793.1,2793.0,29.30379572]
[1645895120168,4.18087444,2793.1,2793.0,29.30379572]
[1645895120869,2.69608108,2793.1,2793.0,29.30379572]
[1645895121070,2.516,2793.1,2793.0,29.30379572]
[1645895121269,3.41855529,2793.1,2793.0,29.30379572]
[1645895122270,3.71855529,2793.1,2793.0,29.30379572]
[1645895122471,4.71855529,2793.1,2793.0,29.30379572]
[1645895122712,3.816,2793.1,2793.0,29.30379572]
[1645895125108,4.71870197,2793.1,2793.0,29.30379572]
[1645895126363,3.816,2793.1,2793.0,29.30379572]
[1645895126964,5.1699342,2793.1,2793.0,29.30379572]
[1645895127163,5.1699342,2793.1,2793.0,26.88226071]
[1645895127766,3.816,2793.1,2793.0,26.88226071]
[1645895128367,5.17111801,2793.1,2793.0,26.88226071]
[1645895129167,3.816,2793.1,2793.0,26.88226071]
[1645895131227,5.62443359,2793.1,2793.0,26.88226071]
[1645895131423,3.816,2793.1,2793.0,26.88226071]
[1645895132630,5.87118475,2793.1,2793.0,26.88226071]
[1645895133325,4.06275116,2793.1,2793.0,26.88226071]
[1645895134766,4.44158237,2793.1,2793.0,26.88226071]
[1645895134966,4.44063965,2793.1,2793.0,26.88226071]
[1645895135370,4.62072073,2793.1,2793.0,26.34108863]
[1645895135570,11.06972073,2793.1,2793.0,26.34108863]
[1645895136169,14.00301372,2793.1,2793.0,22.78990263]
[1645895138219,21.16361372,2793.1,2793.0,22.78990263]
[1645895139623,26.16361372,2793.1,2793.0,22.78990263]
[1645895139920,21.16361372,2793.1,2793.0,22.78990263]
[1645895141559,21.16361372,2793.1,2793.0,22.13072867]
[1645895142361,21.16361372,2793.1,2793.0,19.70889073]
[1645895142967,26.16361372,2793.1,2793.0,19.70889073]
[1645895143162,26.16361372,2793.1,2793.0,19.30889073]
[1645895143765,21.16361372,2793.1,2793.0,19.30889073]
[1645895143971,21.16361372,2793.1,2793.0,19.25889073]
[1645895145419,10.05543121,2793.1,2793.0,19.25889073]
[1645895145622,9.1606,2793.1,2793.0,19.25889073]
[1645895145815,8.51808445,2793.1,2793.0,19.61709073]
[1645895146414,8.51808445,2793.1,2793.0,19.25889073]
[1645895146617,7.1606,2793.1,2793.0,19.25889073]
[1645895146823,8.6766,2793.1,2793.0,19.25889073]
[1645895148219,10.48670263,2793.1,2793.0,19.25889073]
[1645895148415,10.78670263,2793.1,2793.0,19.25889073]
[1645895149264,8.9766,2793.1,2793.0,19.25889073]
[1645895149668,10.78670263,2793.1,2793.0,19.25889073]
[1645895151070,8.9766,2793.1,2793.0,19.25889073]
[1645895151269,10.78670263,2793.1,2793.0,19.25889073]
[1645895151872,10.7879849,2793.1,2793.0,19.25889073]
[1645895153418,8.9766,2793.1,2793.0,19.25889073]
[1645895153616,10.78799322,2793.1,2793.0,19.25889073]
[1645895154023,8.9766,2793.1,2793.0,19.25889073]
[1645895154222,9.36186952,2793.1,2793.0,19.25889073]
[1645895157303,9.36186952,2793.1,2793.0,16.83717075]
[1645895157502,12.86186952,2793.1,2793.0,16.83717075]
[1645895157904,9.36186952,2793.1,2793.0,16.83717075]
[1645895158304,14.86186952,2793.1,2793.0,16.83717075]
[1645895158511,15.24070073,2793.1,2793.0,16.83717075]
[1645895159206,21.31086952,2793.1,2793.0,15.97632818]
[1645895159504,26.65718373,2793.1,2793.0,12.7470731]
[1645895159906,24.39799372,2793.1,2793.0,12.7470731]
[1645895160135,26.65718373,2793.1,2793.0,12.7470731]
[1645895160321,24.39799372,2793.1,2793.0,12.7470731]
[1645895160522,56.39799372,2793.1,2793.0,12.7470731]
[1645895160722,50.28599187,2793.1,2793.0,12.7470731]
[1645895160922,49.39799372,2793.1,2793.0,11.11002283]
[1645895163638,44.39799372,2793.1,2793.0,11.11002283]
[1645895163865,44.58487586,2793.1,2793.0,11.11002283]
[1645895164261,38.37658287,2793.1,2793.0,11.11002283]
[1645895165966,38.37658287,2793.1,2793.0,11.01305074]
[1645895166169,37.98451229,2793.1,2793.0,11.01305074]
[1645895166364,31.865811,2793.1,2793.0,11.01305074]
[1645895166569,30.05543121,2793.1,2793.0,11.01305074]
[1645895166767,28.05543121,2793.1,2793.0,11.01305074]
[1645895167368,25.05543121,2793.1,2793.0,11.01305074]
[1645895167633,26.865811,2793.1,2793.0,11.01305074]
[1645895167924,28.165811,2793.1,2793.0,11.01305074]
[1645895168623,26.35543121,2793.1,2793.0,11.01305074]
[1645895169826,28.16657581,2793.1,2793.0,11.01305074]
[1645895170025,26.35543121,2793.1,2793.0,11.01305074]
[1645895171029,26.77127416,2793.1,2793.0,11.01305074]
[1645895171476,29.47813786,2793.1,2793.0,11.01305074]
[1645895172072,26.76984487,2793.1,2793.0,11.01305074]
[1645895172372,26.76984487,2793.1,2793.0,8.59130974]
[1645895174375,26.53551229,2793.1,2793.0,8.59130974]
[1645895174674,26.35543121,2793.1,2793.0,8.59130974]
[1645895175535,26.61878353,2793.1,2793.0,8.59130974]
[1645895175736,26.35543121,2793.1,2793.0,8.59130974]
[1645895175938,26.5554159,2793.1,2793.0,8.59130974]
[1645895176336,26.35543121,2793.1,2793.0,8.59130974]
[1645895178143,26.56086612,2793.1,2793.0,8.59130974]
[1645895179276,26.7409472,2793.1,2793.0,8.59130974]
[1645895180477,26.35543121,2793.1,2793.0,8.59130974]
[1645895180992,26.05543121,2793.1,2793.0,8.59130974]
[1645895181179,27.86731968,2793.1,2793.0,8.59130974]
[1645895181790,27.86731968,2793.1,2793.0,9.99430974]
[1645895181791,18.29693121,2793.1,2793.0,9.99430974]
[1645895181993,1.07587108,2793.4,2793.2,0.3582]
[1645895181994,2.0,2793.3,2793.2,0.3582]
[1645895182386,1.81188847,2793.5,2793.4,0.3582]
[1645895182615,0.54624044,2793.7,2793.2,0.3582]
[1645895182616,1.81188847,2793.6,2793.2,0.3582]
[1645895183018,0.54624044,2793.7,2793.2,0.3582]
[1645895183216,2.35812891,2793.7,2793.2,0.3582]
[1645895183517,0.54624044,2793.7,2793.3,0.3582]
[1645895183919,0.54624044,2793.7,2793.3,0.3628026]
[1645895184224,0.84624044,2793.7,2793.3,0.3628026]
[1645895184418,0.84624044,2793.7,2793.4,0.3582]
[1645895185224,0.3,2793.7,2793.4,0.3582]
[1645895185424,0.3,2793.7,2793.3,0.00460268]
[1645895185623,2.30460186,2793.8,2793.3,0.00460268]
[1645895186022,2.3,2793.8,2793.0,8.59130974]
[1645895186359,2.30802226,2793.8,2793.3,0.00460268]
[1645895186566,2.30460186,2793.8,2793.3,0.00460268]
[1645895187165,2.3,2793.8,2793.1,0.3582]
[1645895187368,2.3034204,2793.8,2793.1,0.3582]
[1645895187668,2.30801896,2793.8,2793.3,0.00459937]
[1645895187868,2.30459856,2793.8,2793.3,0.00459937]
[1645895188467,2.3,2793.8,2793.1,0.3582]
[1645895188668,2.30801896,2793.8,2793.3,0.00459937]
[1645895188874,2.30459856,2793.8,2793.3,0.00459937]
[1645895189670,2.3,2793.8,2793.1,0.3582]
[1645895189871,2.30801896,2793.8,2793.3,0.00459937]
[1645895190119,2.30459856,2793.8,2793.3,0.00459937]
[1645895190822,2.3,2793.8,2793.1,0.3582]
[1645895191024,2.3034204,2793.8,2793.1,0.3582]
[1645895191224,2.30802236,2793.8,2793.3,0.00460277]
[1645895191425,2.30460196,2793.8,2793.3,0.00460277]
[1645895192025,2.3,2793.8,2793.1,0.3582]
[1645895192229,2.30802236,2793.8,2793.3,0.00460277]
[1645895192426,2.30460196,2793.8,2793.3,0.00460277]
[1645895193226,2.3,2793.8,2793.1,0.3582]
[1645895193427,2.30802236,2793.8,2793.3,0.00460277]
[1645895193629,2.30460196,2793.8,2793.3,0.00460277]
[1645895194469,2.3,2793.8,2793.1,0.3582]
[1645895194667,2.00802222,2793.8,2793.3,0.00460263]
[1645895194870,0.00460182,2793.8,2793.3,0.00460263]
[1645895195666,2.3034204,2794.1,2793.1,0.3582]
[1645895195967,2.25802222,2794.1,2793.5,0.3582]
[1645895196167,2.25460182,2794.1,2793.5,0.3582]
[1645895196773,2.0,2794.1,2793.8,1.79045822]
[1645895197074,1.98151,2794.1,2793.8,1.42938822]
[1645895197472,1.98151,2794.1,2793.1,1.234]
[1645895197711,0.0034204,2794.0,2793.0,12.88450823]
[1645895197911,1.9772604,2794.1,2793.1,12.5]
[1645895198111,1.9772604,2794.1,2793.2,0.30447]
[1645895198112,1.7859704,2794.1,2793.2,0.30447]
[1645895198318,0.00460156,2793.9,2793.4,0.00460237]
[1645895198516,0.00460156,2793.9,2793.6,1.18018452]
[1645895198912,0.00460156,2793.9,2793.6,1.48465452]
[1645895199314,1.7859704,2794.1,2793.6,1.48465452]
[1645895200113,1.7859704,2794.1,2793.6,1.18018452]
[1645895200717,0.00207137,2794.0,2793.6,1.18018452]
[1645895201593,1.7859704,2794.1,2793.6,1.18018452]
[1645895201976,0.00491799,2793.9,2793.6,1.18018452]
[1645895202776,1.7859704,2794.1,2793.6,1.18018452]
[1645895203177,0.00477509,2793.9,2793.6,1.18018452]
[1645895203979,1.7859704,2794.1,2793.6,1.18018452]
[1645895204379,0.00477509,2793.9,2793.6,1.18018452]
[1645895205218,1.7859704,2794.1,2793.6,1.18018452]
[1645895205419,0.00477509,2793.9,2793.4,0.00477593]
[1645895205824,0.66387509,2793.9,2793.4,0.00477593]
[1645895206224,0.82077509,2793.9,2793.4,0.00477593]
[1645895206424,0.1431,2793.8,2793.0,11.88450823]
[1645895206624,0.14650396,2793.8,2793.1,1.33628527]
[1645895206928,0.14650396,2793.8,2793.4,0.00491875]
[1645895207127,0.1431,2793.8,2793.4,0.00491875]
[1645895207529,0.96401787,2793.9,2793.1,1.33628527]
[1645895207725,0.00340396,2793.8,2793.1,1.33628527]
[1645895207928,0.96401784,2793.9,2793.4,0.00491871]
[1645895208127,0.00340396,2793.8,2793.4,0.00491871]
[1645895208326,0.30491784,2793.9,2793.4,0.00491871]
[1645895208729,2.38937436,2794.1,2793.1,1.33628527]
[1645895208971,0.00340396,2793.9,2793.1,1.33628527]
[1645895209270,0.00832183,2793.9,2793.6,1.31347355]
[1645895209470,0.00491787,2793.9,2793.6,1.31347355]
[1645895210076,1.7859704,2794.1,2793.6,1.31347355]
[1645895210273,0.00491795,2793.9,2793.6,1.31347355]
[1645895211272,1.7859704,2794.1,2793.6,1.31347355]
[1645895211478,0.00491795,2793.9,2793.6,1.31347355]
[1645895212479,1.7859704,2794.1,2793.6,1.31347355]
[1645895212724,0.00491795,2793.9,2793.6,1.31347355]
[1645895213319,0.00491795,2793.9,2793.4,0.00491882]
[1645895214518,0.00491795,2793.9,2793.6,1.37346315]
[1645895214922,1.7859704,2794.1,2793.6,1.37346315]
[1645895215126,0.00491787,2793.9,2793.6,1.37346315]
[1645895216128,1.7859704,2794.1,2793.6,1.37346315]
[1645895216406,0.00491795,2793.9,2793.4,0.00491882]
[1645895217206,1.78937436,2794.1,2793.0,12.88450823]
[1645895217407,0.00491787,2793.9,2793.4,1.12168373]
[1645895218506,1.7859704,2794.1,2793.4,1.11676498]
[1645895218708,0.00491787,2793.9,2793.4,1.12168373]
[1645895219708,1.7859704,2794.1,2793.4,1.11676498]
[1645895219912,0.00491787,2793.9,2793.4,1.12168373]
[1645895220328,0.00491787,2793.9,2793.4,6.12035323]
[1645895220734,0.00491787,2793.9,2793.4,18.03035323]
[1645895220938,0.00340396,2794.3,2793.6,10.91]
[1645895221135,1.95498847,2794.9,2793.7,15.9086695]
[1645895221136,0.00491787,2793.9,2793.7,15.9086695]
[1645895221536,0.00491787,2793.9,2793.8,1.51248247]
[1645895222131,0.00340396,2794.8,2793.8,1.51248247]
[1645895222332,0.00340396,2794.8,2793.8,4.19927585]
[1645895222531,0.00340396,2794.8,2794.5,1.11442395]
[1645895222732,0.1431,2794.9,2793.8,3.2933]
[1645895222932,0.00340396,2794.8,2793.9,1.51240446]
[1645895223732,0.00340396,2794.8,2794.2,1.22092707]
[1645895223961,0.1431,2794.9,2794.2,1.22092707]
[1645895224663,0.00491385,2794.7,2794.2,1.22092707]
[1645895225673,0.00340396,2794.8,2794.2,1.22092707]
[1645895225868,0.00491395,2794.6,2794.2,1.22092707]
[1645895226569,0.00491395,2794.6,2793.9,0.2835]
[1645895226769,0.00340396,2794.8,2793.9,0.2835]
[1645895227168,0.004914,2794.5,2793.8,4.2933]
[1645895227625,0.004914,2794.5,2794.4,1.30595151]
[1645895228013,0.00340396,2794.8,2794.4,1.30595151]
[1645895228217,0.1431,2794.9,2794.4,1.30595151]
[1645895228419,0.00491395,2794.6,2793.8,4.2933]
[1645895229219,0.00340396,2794.8,2793.8,4.2933]
[1645895229518,0.0049142,2794.3,2794.2,1.24976563]
[1645895230519,0.00340396,2794.8,2794.2,1.24976563]
[1645895230724,0.00491415,2794.4,2794.2,1.24976563]
[1645895231370,0.00491415,2794.4,2793.8,4.2933]
[1645895231580,1.65760331,2794.9,2793.8,4.2933]
[1645895231776,0.30340396,2794.9,2793.8,4.2933]
[1645895231978,0.0049141,2794.4,2793.8,4.2933]
[1645895232777,1.65760331,2794.9,2793.8,4.2933]
[1645895233182,0.00491431,2794.2,2793.8,4.2933]
[1645895234080,3.02650331,2794.9,2793.8,4.2933]
[1645895234380,0.00491441,2794.1,2793.8,4.2933]
[1645895235217,3.02650331,2794.9,2793.8,4.2933]
[1645895235418,0.00491446,2794.1,2793.8,4.2933]
[1645895235622,0.00491446,2794.1,2794.0,1.08230689]
[1645895236421,2.72650331,2794.9,2794.0,1.08230689]
[1645895236623,1.22920396,2794.9,2794.0,1.08230689]
[1645895237224,1.22920396,2794.9,2794.5,1.43608603]
[1645895237424,1.2258,2794.9,2793.8,9.29059277]
[1645895237724,0.00340396,2794.8,2793.9,1.5123567]
[1645895239587,0.00340396,2794.8,2794.6,1.28555739]
[1645895239792,0.00340396,2795.0,2794.6,2.42145739]
[1645895239985,0.00340396,2795.1,2794.6,2.42145739]
[1645895240185,2.48180396,2795.3,2794.6,2.42145739]
[1645895240385,0.00491032,2794.8,2794.6,2.42145739]
[1645895240986,0.00491032,2794.8,2794.3,1.78957]
[1645895241192,0.00340396,2795.3,2794.3,2.78957]
[1645895241384,0.00340396,2795.3,2794.3,6.78686277]
[1645895241588,0.00340396,2795.3,2794.3,2.78957]
[1645895241589,0.00491032,2794.8,2794.3,2.78957]
[1645895241789,0.00491032,2794.8,2794.3,2.6844286]
[1645895241988,0.00491032,2794.8,2794.3,3.6844286]
[1645895242191,0.00491032,2794.8,2794.7,1.09392675]
[1645895242389,0.00340396,2795.3,2794.7,1.09392675]
[1645895242629,4.765,2795.4,2794.7,1.09392675]
[1645895242630,1.4637,2795.4,2794.7,1.09392675]
[1645895243627,1.3068,2795.4,2794.7,1.09392675]
[1645895243837,0.00490996,2795.2,2794.7,1.09392675]
[1645895244426,0.00490996,2795.2,2794.8,10.91]
[1645895244627,0.00490996,2795.2,2794.7,1.09392675]
[1645895244827,0.00340465,2795.6,2794.7,1.09392675]
[1645895245029,0.00489315,2795.1,2794.7,1.09392675]
[1645895245227,0.00489315,2795.1,2794.7,1.09238014]
[1645895246029,0.00340465,2795.6,2794.7,1.09238014]
[1645895246482,0.00489325,2795.0,2794.7,1.09238014]
[1645895247278,0.00340465,2795.6,2794.7,1.09238014]
[1645895247580,35.36,2794.8,2794.2,17.26549277]
[1645895247779,35.36,2794.8,2794.3,12.4221332]
[1645895247979,35.36,2794.8,2794.2,1.0]
[1645895248380,35.36,2794.8,2794.1,0.00440198]
[1645895248578,35.36,2794.8,2794.2,1.51224701]
[1645895248782,0.00491052,2794.6,2794.2,1.51224701]
[1645895249180,0.00491052,2794.6,2794.1,2.16162152]
[1645895249381,0.00491052,2794.6,2794.1,1.16162152]
[1645895249578,0.00340465,2794.7,2794.1,1.16162152]
[1645895249779,35.36340465,2794.8,2794.1,1.16162152]
[1645895249980,0.00491068,2794.5,2794.1,1.16162152]
[1645895250264,0.00491068,2794.5,2794.2,7.1574]
[1645895250666,0.00491068,2794.5,2794.2,8.1574]
[1645895250863,35.36340465,2794.8,2794.2,8.1574]
[1645895251067,0.00491068,2794.5,2794.2,8.1574]
[1645895252076,35.36340465,2794.8,2794.2,8.1574]
[1645895252283,0.00491068,2794.5,2794.2,7.1574]
[1645895253278,2.63019108,2794.4,2794.2,7.1574]
[1645895253476,2.93019108,2794.4,2794.2,7.1574]
[1645895254284,2.93019108,2794.4,2793.4,5.23550841]
[1645895254285,12.5,2794.3,2793.4,5.23550841]
[1645895254482,6.449,2794.0,2793.0,7.3330775]
[1645895254678,0.01255141,2793.6,2793.0,3.78900111]
[1645895254879,0.6591,2793.5,2793.4,0.00491248]
[1645895255178,10.73891006,2793.4,2793.0,3.74391359]
[1645895255480,2.45104,2793.3,2793.0,3.74391359]
[1645895255676,0.3,2793.2,2793.0,3.74391359]
[1645895255877,2.4510659,2793.1,2793.0,3.74391359]
[1645895256080,2.7510659,2793.1,2793.0,3.74391359]
[1645895256279,3.7510659,2793.1,2793.0,3.74391359]
[1645895256682,7.2510659,2793.1,2793.0,3.74391359]
[1645895258131,7.43114698,2793.1,2793.0,3.74391359]
[1645895259337,3.93114698,2793.1,2793.0,3.74391359]
[1645895259548,2.13918108,2793.1,2793.0,3.74391359]
[1645895259737,1.13918108,2793.1,2793.0,3.74391359]
[1645895259940,0.99608108,2793.1,2793.0,3.74391359]
[1645895260137,0.99608108,2793.1,2793.0,3.69391359]
[1645895261037,0.816,2793.1,2793.0,3.69391359]
[1645895265141,0.3,2793.1,2793.0,3.69391359]
[1645895265329,1.19583,2793.3,2793.0,3.69391359]
[1645895266227,0.3,2793.3,2793.0,3.69391359]
[1645895266438,0.6,2793.4,2793.0,3.69391359]
[1645895266638,0.3,2793.4,2793.0,3.69391359]
[1645895266834,0.3,2793.4,2793.0,3.69882598]
[1645895267040,2.80079501,2793.5,2793.0,3.69882598]
[1645895267638,2.79030515,2793.5,2793.0,3.69391359]
[1645895267837,3.68607515,2793.5,2793.0,3.69391359]
[1645895268036,4.68607515,2793.5,2793.1,0.00491229]
[1645895268635,0.516,2793.4,2793.1,0.00491229]
[1645895268870,0.516,2793.4,2793.0,3.69391359]
[1645895268871,1.4118688,2793.4,2793.0,3.69391359]
[1645895269071,0.18008108,2793.3,2793.0,3.69391359]
[1645895269273,0.69608108,2793.3,2793.2,0.00491224]
[1645895269671,0.99608108,2793.3,2793.2,0.00491224]
[1645895270072,0.99608108,2793.3,2793.0,3.69391359]
[1645895270272,1.89193108,2793.3,2793.1,0.00491229]
[1645895270880,2.78777108,2793.3,2793.1,0.00491229]
[1645895271174,0.89585,2793.2,2793.1,0.00491229]
[1645895271378,0.89585,2793.2,2793.0,3.69391359]
[1645895271579,0.3,2793.1,2793.0,3.69391359]
[1645895272279,0.78008108,2793.3,2793.0,3.69391359]
[1645895272487,1.48008108,2793.3,2793.0,3.69391359]
[1645895272728,0.48008108,2793.3,2793.0,3.69391359]
[1645895272930,0.18008108,2793.3,2793.0,3.69391359]
[1645895273929,0.18008108,2793.3,2793.0,3.69882202]
[1645895274127,0.48008108,2793.3,2793.0,3.69882202]
[1645895274730,0.99608108,2793.3,2793.0,3.69882202]
[1645895274930,0.99608108,2793.3,2793.0,3.69391359]
[1645895275134,0.99608108,2793.3,2793.0,3.69882202]
[1645895276130,0.99608108,2793.3,2793.0,3.69391359]
[1645895276374,0.99608108,2793.3,2793.0,3.69882202]
[1645895277381,0.99608108,2793.3,2793.0,3.69391359]
[1645895277580,0.99608108,2793.3,2793.0,3.69882202]
[1645895277981,0.69608108,2793.3,2793.0,3.69882202]
[1645895278183,1.7856,2793.5,2793.0,3.61154068]
[1645895278382,1.7856,2793.5,2793.0,3.58054068]
[1645895278584,1.7856,2793.5,2793.0,3.57563225]
[1645895278786,6.49946078,2794.2,2793.0,3.58054068]
[1645895278787,0.00490733,2793.6,2793.0,3.58054068]
[1645895279183,0.00490733,2793.6,2793.3,1.41775647]
[1645895279781,1.7856,2793.8,2793.3,1.41775647]
[1645895279984,0.00490756,2793.6,2793.3,0.00490821]
[1645895281027,5.4672,2792.6,2791.8,2.69946645]
[1645895281229,3.85329461,2792.0,2791.9,16.20729277]
[1645895281429,3.85329461,2792.0,2791.9,25.24193973]
[1645895281630,3.85329461,2792.0,2791.9,26.13745973]
[1645895282534,3.85329461,2792.0,2791.9,27.47838683]
[1645895282936,8.2008,2792.4,2792.2,13.0591753]
[1645895283133,8.2008,2792.4,2792.3,23.42809277]
[1645895283336,8.2008,2792.4,2792.3,24.94109114]
[1645895283533,8.2008,2792.4,2792.3,25.66222837]
[1645895283734,8.2008,2792.4,2792.3,20.94379837]
[1645895283973,8.2008,2792.4,2792.3,19.4308]
[1645895284173,8.2008,2792.4,2792.3,24.14923]
[1645895284374,8.2008,2792.4,2792.3,25.96219738]
[1645895284975,5.2172,2792.5,2792.4,23.7682]
[1645895285275,3.77796677,2792.5,2792.4,27.22156738]
[1645895285675,2.17536239,2792.6,2792.5,12.8582]
[1645895285877,8.2008,2793.3,2792.6,23.7682]
[1645895285878,4.1668049,2792.7,2792.6,23.7682]
[1645895286079,4.1668049,2792.7,2792.6,26.09716738]
[1645895286276,4.1668049,2792.7,2792.6,28.09716738]
[1645895286882,4.1668049,2792.7,2792.6,28.41832738]
[1645895287079,4.1668049,2792.7,2792.6,28.84832738]
[1645895288731,4.65234806,2792.8,2792.6,28.84832738]
[1645895288930,4.65234806,2792.8,2792.7,17.49959738]
[1645895289129,4.65234806,2792.8,2792.7,17.92959738]
[1645895289330,4.65234806,2792.8,2792.7,18.92959738]
[1645895289532,4.65234806,2792.8,2792.7,19.76675738]
[1645895289733,4.65234806,2792.8,2792.7,20.06675738]
[1645895289932,4.65234806,2792.8,2792.7,27.22825738]
[1645895290132,4.65234806,2792.8,2792.7,29.11697741]
[1645895290839,4.65234806,2792.8,2792.7,27.22825738]
[1645895292077,4.65234806,2792.8,2792.7,29.11879368]
[1645895294879,4.65234806,2792.8,2792.7,29.116369]
[1645895295326,3.86141045,2792.8,2792.7,29.116369]
[1645895295728,3.86141045,2792.8,2792.7,30.116369]
[1645895296733,3.86141045,2792.8,2792.7,30.79439308]
[1645895296934,3.86141045,2792.8,2792.7,30.116369]
[1645895297735,3.86141045,2792.8,2792.7,30.79439308]
[1645895298876,3.86141045,2792.8,2792.7,30.116369]
[1645895301288,2.24800737,2792.8,2792.7,30.116369]
[1645895302489,9.76e-05,2792.8,2792.7,30.116369]
[1645895302726,9.76e-05,2792.8,2792.7,32.01616469]
[1645895303525,8.2008,2793.3,2792.8,0.0007024]
[1645895303724,8.2008,2793.3,2792.8,23.10066608]
[1645895304031,2.10374929,2793.4,2793.0,23.41]
[1645895304230,4.95226635,2793.5,2793.4,10.91]
[1645895304430,4.95226635,2793.5,2793.4,14.6539027]
[1645895304628,4.95226635,2793.5,2793.4,23.1136027]
[1645895304827,4.95226635,2793.5,2793.4,27.93229443]
[1645895305132,4.95226635,2793.5,2793.4,29.30822242]
[1645895305726,4.95226635,2793.5,2793.4,28.95002242]
[1645895306127,4.82721909,2793.5,2793.4,28.95002242]
[1645895306621,4.82721909,2793.5,2793.4,28.27499699]
[1645895306817,4.82721909,2793.5,2793.4,28.95002242]
[1645895307023,5.4932,2793.7,2793.6,23.41]
[1645895307217,5.4932,2793.7,2793.6,40.77933368]
[1645895307420,5.4932,2793.7,2793.6,41.42113368]
[1645895307819,5.4932,2793.7,2793.6,39.53059738]
[1645895308021,5.4932,2793.7,2793.6,41.39503503]
[1645895310642,0.12459,2793.7,2793.6,41.39503503]
[1645895310840,0.12459,2793.7,2793.6,41.75281503]
[1645895311045,7.80539,2793.8,2793.7,23.41]
[1645895311242,7.80539,2793.8,2793.7,36.57120503]
[1645895311243,7.81030919,2793.8,2793.7,36.57120503]
[1645895311645,7.81030919,2793.8,2793.7,37.57120503]